[Event "*** Titled Tuesday Blitz"]
[Site "Chess.com"]
[Date "2020.05.05"]
[Round "3"]
[White "Nafania1"]
[Black "lamomiablanca"]
[Result "0-1"]
[WhiteElo "2375"]
[BlackElo "2132"]
[TimeControl "180+1"]
[EndTime "10:30:22 PDT"]
[Termination "lamomiablanca won on time"]

1. e4 {[%clk 0:03:00.9]} 1... c5 {[%clk 0:02:58.8]} 2. Nf3 {[%clk 0:03:00.6]}
2... Nc6 {[%clk 0:02:58.7]} 3. Bb5 {[%clk 0:03:00.2]} 3... g6 {[%clk 0:02:57.6]}
4. c3 {[%clk 0:03:00.1]} 4... Nf6 {[%clk 0:02:55.4]} 5. Qe2 {[%clk 0:03:00]}
5... Bg7 {[%clk 0:02:54.3]} 6. d4 {[%clk 0:03:00]} 6... cxd4 {[%clk 0:02:50.2]}
7. cxd4 {[%clk 0:02:59.8]} 7... d5 {[%clk 0:02:41.9]} 8. e5 {[%clk 0:03:00.1]}
8... Ne4 {[%clk 0:02:40.6]} 9. O-O {[%clk 0:03:00.3]} 9... O-O {[%clk
0:02:39.3]} 10. Rd1 {[%clk 0:03:00.3]} 10... Qb6 {[%clk 0:02:36.6]} 11. Nc3
{[%clk 0:02:59.1]} 11... Nxc3 {[%clk 0:02:28.9]} 12. bxc3 {[%clk 0:02:59]} 12...
Bg4 {[%clk 0:02:28]} 13. h3 {[%clk 0:02:57.2]} 13... Bxf3 {[%clk 0:02:27.3]} 14.
gxf3 {[%clk 0:02:57.3]} 14... e6 {[%clk 0:02:26.8]} 15. Ba3 {[%clk 0:02:54.4]}
15... Rfc8 {[%clk 0:02:25.1]} 16. Rab1 {[%clk 0:02:54.3]} 16... a6 {[%clk
0:02:20.1]} 17. Bd3 {[%clk 0:02:35.8]} 17... Qc7 {[%clk 0:02:18.5]} 18. Bd6
{[%clk 0:02:34.9]} 18... Qd7 {[%clk 0:02:17.7]} 19. Qb2 {[%clk 0:02:15.4]} 19...
Na5 {[%clk 0:02:11.8]} 20. Qb6 {[%clk 0:02:11]} 20... Nc4 {[%clk 0:02:04.1]} 21.
Qxb7 {[%clk 0:02:00.1]} 21... Qd8 {[%clk 0:01:58.7]} 22. Bxc4 {[%clk 0:01:52.9]}
22... Rxc4 {[%clk 0:01:49.2]} 23. Be7 {[%clk 0:01:18.4]} 23... Qe8 {[%clk
0:01:35.4]} 24. Rb3 {[%clk 0:01:11.3]} 24... Rac8 {[%clk 0:01:29.4]} 25. Bd6
{[%clk 0:01:07.9]} 25... Bh6 {[%clk 0:01:10.4]} 26. Qxa6 {[%clk 0:00:52.7]}
26... Qd8 {[%clk 0:01:04.2]} 27. Qa7 {[%clk 0:00:43.6]} 27... Qg5+ {[%clk
0:01:02.1]} 28. Kf1 {[%clk 0:00:43.6]} 28... Qf5 {[%clk 0:00:55.5]} 29. Ke2
{[%clk 0:00:43]} 29... Qc2+ {[%clk 0:00:49.6]} 30. Ke1 {[%clk 0:00:43.2]} 30...
Rxc3 {[%clk 0:00:44.1]} 31. Rxc3 {[%clk 0:00:24.2]} 31... Qxc3+ {[%clk
0:00:42.9]} 32. Ke2 {[%clk 0:00:20.6]} 32... Qc2+ {[%clk 0:00:36.5]} 33. Ke1
{[%clk 0:00:20.8]} 33... Qf5 {[%clk 0:00:33.8]} 34. Qd7 {[%clk 0:00:20.8]} 34...
Qc2 {[%clk 0:00:28.3]} 35. a4 {[%clk 0:00:16.7]} 35... Bf4 {[%clk 0:00:25.7]}
36. a5 {[%clk 0:00:15.2]} 36... Qc3+ {[%clk 0:00:24.5]} 37. Ke2 {[%clk
0:00:14.3]} 37... Qc4+ {[%clk 0:00:24.7]} 38. Ke1 {[%clk 0:00:13.9]} 38... Qb4+
{[%clk 0:00:23.1]} 39. Ke2 {[%clk 0:00:13.7]} 39... Qb2+ {[%clk 0:00:20.3]} 40.
Ke1 {[%clk 0:00:13.6]} 40... Kg7 {[%clk 0:00:19.5]} 41. Qe7 {[%clk 0:00:11.6]}
41... Qc3+ {[%clk 0:00:18.2]} 42. Ke2 {[%clk 0:00:10.5]} 42... Qc4+ {[%clk
0:00:17.3]} 43. Ke1 {[%clk 0:00:09.9]} 43... h5 {[%clk 0:00:14.4]} 44. Qf6+
{[%clk 0:00:09.6]} 44... Kg8 {[%clk 0:00:14.8]} 45. Qxf4 {[%clk 0:00:09.9]}
45... Qc3+ {[%clk 0:00:14.3]} 46. Kf1 {[%clk 0:00:09.7]} 46... Qc2 {[%clk
0:00:13.7]} 47. Rd2 {[%clk 0:00:08.6]} 47... Qc1+ {[%clk 0:00:13]} 48. Kg2
{[%clk 0:00:08.8]} 48... Rc2 {[%clk 0:00:10.3]} 49. Bb4 {[%clk 0:00:07.2]} 49...
Rb2 {[%clk 0:00:09]} 50. Qe3 {[%clk 0:00:03.6]} 50... Rxb4 {[%clk 0:00:07.7]}
51. Ra2 {[%clk 0:00:01.9]} 51... Qc4 {[%clk 0:00:05.9]} 0-1

[Event "*** Titled Tuesday Blitz"]
[Site "Chess.com"]
[Date "2020.05.05"]
[Round "3"]
[White "yoolund"]
[Black "Gulkov_Igor"]
[Result "0-1"]
[WhiteElo "2571"]
[BlackElo "2399"]
[TimeControl "180+1"]
[EndTime "10:30:24 PDT"]
[Termination "Gulkov_Igor won on time"]

1. d4 {[%clk 0:03:00.9]} 1... Nf6 {[%clk 0:02:59.4]} 2. Bg5 {[%clk 0:03:00.2]}
2... d5 {[%clk 0:02:58.7]} 3. Bxf6 {[%clk 0:02:59.3]} 3... exf6 {[%clk
0:02:58.8]} 4. e3 {[%clk 0:02:59]} 4... Be6 {[%clk 0:02:58.8]} 5. Nd2 {[%clk
0:02:57.8]} 5... Bd6 {[%clk 0:02:58.6]} 6. c4 {[%clk 0:02:53.9]} 6... dxc4
{[%clk 0:02:57.6]} 7. Bxc4 {[%clk 0:02:53.5]} 7... Bxc4 {[%clk 0:02:54.2]} 8.
Nxc4 {[%clk 0:02:54.4]} 8... Bb4+ {[%clk 0:02:54.3]} 9. Nd2 {[%clk 0:02:53.7]}
9... O-O {[%clk 0:02:53.7]} 10. Ne2 {[%clk 0:02:51.5]} 10... Nd7 {[%clk
0:02:48]} 11. O-O {[%clk 0:02:51]} 11... f5 {[%clk 0:02:43.7]} 12. Rc1 {[%clk
0:02:50]} 12... c6 {[%clk 0:02:42.7]} 13. Nf3 {[%clk 0:02:38.9]} 13... Nf6
{[%clk 0:02:39.9]} 14. Qd3 {[%clk 0:02:36.8]} 14... g6 {[%clk 0:02:38.6]} 15.
Rfd1 {[%clk 0:02:37.1]} 15... Qe7 {[%clk 0:02:32.9]} 16. h3 {[%clk 0:01:42.4]}
16... Ne4 {[%clk 0:02:27.7]} 17. a3 {[%clk 0:01:41.9]} 17... Bd6 {[%clk
0:02:26.9]} 18. Nd2 {[%clk 0:01:41.6]} 18... Rfd8 {[%clk 0:02:14.1]} 19. Nc3
{[%clk 0:01:39.4]} 19... Nxc3 {[%clk 0:01:53.3]} 20. Qxc3 {[%clk 0:01:35.2]}
20... Rac8 {[%clk 0:01:45.2]} 21. Qb3 {[%clk 0:01:28.3]} 21... Bb8 {[%clk
0:01:22.5]} 22. Nf3 {[%clk 0:01:26.3]} 22... f4 {[%clk 0:01:13.8]} 23. e4 {[%clk
0:00:59.2]} 23... Rd7 {[%clk 0:01:13.4]} 24. Re1 {[%clk 0:00:51.8]} 24... Rcd8
{[%clk 0:01:12.6]} 25. Rcd1 {[%clk 0:00:51.2]} 25... h5 {[%clk 0:01:08.8]} 26.
d5 {[%clk 0:00:43.4]} 26... cxd5 {[%clk 0:01:07.9]} 27. Rxd5 {[%clk 0:00:36.6]}
27... Kg7 {[%clk 0:01:00.5]} 28. Red1 {[%clk 0:00:31.5]} 28... Rxd5 {[%clk
0:00:59.6]} 29. Rxd5 {[%clk 0:00:30.4]} 29... Rxd5 {[%clk 0:00:58.8]} 30. Qxd5
{[%clk 0:00:29.7]} 30... a6 {[%clk 0:00:37.1]} 31. Kh2 {[%clk 0:00:27.4]} 31...
Kg8 {[%clk 0:00:35]} 32. b4 {[%clk 0:00:22.2]} 32... Ba7 {[%clk 0:00:34.3]} 33.
Kg1 {[%clk 0:00:19.8]} 33... Bb8 {[%clk 0:00:33.8]} 34. Ng5 {[%clk 0:00:16.9]}
34... Kg7 {[%clk 0:00:28.2]} 35. Kh2 {[%clk 0:00:12.9]} 35... f3+ {[%clk
0:00:26.4]} 36. g3 {[%clk 0:00:12.6]} 36... Qf6 {[%clk 0:00:19.2]} 37. h4 {[%clk
0:00:12.4]} 37... Be5 {[%clk 0:00:17.6]} 38. Qd3 {[%clk 0:00:11.4]} 38... Bd4
{[%clk 0:00:16.9]} 39. Kg1 {[%clk 0:00:09.4]} 39... Bb2 {[%clk 0:00:16.7]} 40.
Nxf3 {[%clk 0:00:05.8]} 40... b5 {[%clk 0:00:10.1]} 41. Kg2 {[%clk 0:00:05.6]}
41... Qe6 {[%clk 0:00:10]} 42. Qe3 {[%clk 0:00:04.8]} 42... Qf6 {[%clk
0:00:05.6]} 43. e5 {[%clk 0:00:04.3]} 43... Qe6 {[%clk 0:00:05.6]} 44. Qe4
{[%clk 0:00:04.1]} 44... Qc4 {[%clk 0:00:05.4]} 45. Qe3 {[%clk 0:00:02.5]} 45...
Bc1 {[%clk 0:00:04.2]} 0-1

[Event "*** Titled Tuesday Blitz"]
[Site "Chess.com"]
[Date "2020.05.05"]
[Round "3"]
[White "vangulio"]
[Black "narutosmith"]
[Result "1-0"]
[WhiteElo "2520"]
[BlackElo "2264"]
[TimeControl "180+1"]
[EndTime "10:30:24 PDT"]
[Termination "vangulio won on time"]

1. e4 {[%clk 0:03:00.9]} 1... c5 {[%clk 0:02:59.6]} 2. Nf3 {[%clk 0:03:01.1]}
2... e6 {[%clk 0:02:59.9]} 3. d4 {[%clk 0:03:01.8]} 3... cxd4 {[%clk 0:03:00.5]}
4. Nxd4 {[%clk 0:03:02.5]} 4... Nc6 {[%clk 0:03:00.9]} 5. Nc3 {[%clk 0:03:02.6]}
5... Qc7 {[%clk 0:03:01.2]} 6. Be3 {[%clk 0:03:02.1]} 6... a6 {[%clk 0:03:01.3]}
7. Qf3 {[%clk 0:03:01.1]} 7... Nf6 {[%clk 0:03:01.3]} 8. Qg3 {[%clk 0:02:57.5]}
8... Qxg3 {[%clk 0:02:45.5]} 9. hxg3 {[%clk 0:02:57]} 9... Ng4 {[%clk 0:02:46]}
10. Nxc6 {[%clk 0:02:47.9]} 10... Nxe3 {[%clk 0:02:43]} 11. Nd4 {[%clk
0:02:46.3]} 11... Nxf1 {[%clk 0:02:33.8]} 12. Kxf1 {[%clk 0:02:45.5]} 12... Bb4
{[%clk 0:02:28]} 13. Nce2 {[%clk 0:02:43.5]} 13... O-O {[%clk 0:02:27.5]} 14. a3
{[%clk 0:02:40.3]} 14... Bc5 {[%clk 0:02:26.5]} 15. b4 {[%clk 0:02:39.6]} 15...
Be7 {[%clk 0:02:22.7]} 16. c4 {[%clk 0:02:38.8]} 16... b6 {[%clk 0:02:19.9]} 17.
f3 {[%clk 0:02:37]} 17... Bb7 {[%clk 0:02:19.8]} 18. Kf2 {[%clk 0:02:37.5]}
18... d5 {[%clk 0:02:14]} 19. cxd5 {[%clk 0:02:35]} 19... exd5 {[%clk
0:02:14.1]} 20. e5 {[%clk 0:02:35.6]} 20... g6 {[%clk 0:02:09.4]} 21. Rac1
{[%clk 0:02:31.1]} 21... Rfc8 {[%clk 0:02:08.9]} 22. f4 {[%clk 0:02:23.6]} 22...
a5 {[%clk 0:02:05]} 23. bxa5 {[%clk 0:02:15.8]} 23... bxa5 {[%clk 0:02:04.4]}
24. a4 {[%clk 0:02:07.6]} 24... Bc5 {[%clk 0:01:50.7]} 25. g4 {[%clk 0:01:46.9]}
25... Ba6 {[%clk 0:01:50.3]} 26. Kf3 {[%clk 0:01:42]} 26... Bd3 {[%clk
0:01:49.4]} 27. Rc3 {[%clk 0:01:36.4]} 27... Bc4 {[%clk 0:01:11]} 28. Rhc1
{[%clk 0:01:28.8]} 28... Rab8 {[%clk 0:01:09.9]} 29. Nb5 {[%clk 0:01:21.9]}
29... Bb4 {[%clk 0:00:57.3]} 30. R3c2 {[%clk 0:01:17.3]} 30... Rd8 {[%clk
0:00:39.4]} 31. Ned4 {[%clk 0:01:08.6]} 31... Rbc8 {[%clk 0:00:37.1]} 32. g3
{[%clk 0:00:43.4]} 32... Rd7 {[%clk 0:00:31]} 33. g5 {[%clk 0:00:37.8]} 33...
Kg7 {[%clk 0:00:29.6]} 34. g4 {[%clk 0:00:36.8]} 34... Rh8 {[%clk 0:00:25.6]}
35. f5 {[%clk 0:00:36.5]} 35... Re8 {[%clk 0:00:20.6]} 36. e6 {[%clk 0:00:29.6]}
36... fxe6 {[%clk 0:00:18.8]} 37. Nxe6+ {[%clk 0:00:29.4]} 37... Kf7 {[%clk
0:00:16.9]} 38. Nbd4 {[%clk 0:00:24.8]} 38... Bd6 {[%clk 0:00:14.6]} 39. Rh1
{[%clk 0:00:23.3]} 39... Kg8 {[%clk 0:00:13.8]} 40. Rh6 {[%clk 0:00:16.5]} 40...
Bd3 {[%clk 0:00:10.8]} 41. Rc6 {[%clk 0:00:14.3]} 41... Be4+ {[%clk 0:00:10.8]}
42. Kf2 {[%clk 0:00:13.8]} 42... Be5 {[%clk 0:00:09.4]} 43. Nb5 {[%clk
0:00:12.8]} 43... Rb7 {[%clk 0:00:08.1]} 44. Nc5 {[%clk 0:00:11.2]} 44... Rbe7
{[%clk 0:00:07.1]} 45. Nxe4 {[%clk 0:00:10.6]} 45... dxe4 {[%clk 0:00:06.7]} 46.
fxg6 {[%clk 0:00:10.8]} 46... hxg6 {[%clk 0:00:06.7]} 47. Rhxg6+ {[%clk
0:00:11.3]} 47... Rg7 {[%clk 0:00:06.8]} 48. Ke2 {[%clk 0:00:11.2]} 48... Rxg6
{[%clk 0:00:05.6]} 49. Rxg6+ {[%clk 0:00:10.8]} 49... Kf7 {[%clk 0:00:06.1]} 50.
Ra6 {[%clk 0:00:11.5]} 50... Rg8 {[%clk 0:00:05.8]} 51. Ra7+ {[%clk 0:00:11.3]}
51... Ke6 {[%clk 0:00:05.4]} 52. Rxa5 {[%clk 0:00:11.5]} 52... Rxg5 {[%clk
0:00:05.2]} 53. Ra6+ {[%clk 0:00:11.7]} 53... Kd5 {[%clk 0:00:05.2]} 54. Ra8
{[%clk 0:00:08.7]} 54... Rxg4 {[%clk 0:00:05]} 55. Rd8+ {[%clk 0:00:08.3]} 55...
Kc4 {[%clk 0:00:04.5]} 56. Kf2 {[%clk 0:00:07.6]} 56... Kb4 {[%clk 0:00:03.5]}
57. Rd5 {[%clk 0:00:06.6]} 1-0

[Event "*** Titled Tuesday Blitz"]
[Site "Chess.com"]
[Date "2020.05.05"]
[Round "3"]
[White "Zakaryan_David"]
[Black "temus_galaktionov"]
[Result "1-0"]
[WhiteElo "2566"]
[BlackElo "2763"]
[TimeControl "180+1"]
[EndTime "10:30:25 PDT"]
[Termination "Zakaryan_David won on time"]

1. d4 {[%clk 0:03:00.9]} 1... c6 {[%clk 0:03:00.9]} 2. c4 {[%clk 0:03:00.2]}
2... g6 {[%clk 0:03:01.8]} 3. Nc3 {[%clk 0:03:00.5]} 3... Bg7 {[%clk 0:02:55.6]}
4. e4 {[%clk 0:03:00.4]} 4... d6 {[%clk 0:02:55.3]} 5. Be3 {[%clk 0:02:53.3]}
5... Nd7 {[%clk 0:02:56.2]} 6. Nf3 {[%clk 0:02:52.2]} 6... e5 {[%clk 0:02:55.7]}
7. Qd2 {[%clk 0:02:46.1]} 7... Ngf6 {[%clk 0:02:53.8]} 8. h3 {[%clk 0:02:39.4]}
8... O-O {[%clk 0:02:50.7]} 9. d5 {[%clk 0:02:38.1]} 9... c5 {[%clk 0:02:48.7]}
10. Be2 {[%clk 0:02:36]} 10... a6 {[%clk 0:02:48.2]} 11. a3 {[%clk 0:02:30.1]}
11... Ne8 {[%clk 0:02:46]} 12. g4 {[%clk 0:02:25.8]} 12... f6 {[%clk 0:02:41.4]}
13. h4 {[%clk 0:02:16]} 13... Rf7 {[%clk 0:02:33.8]} 14. h5 {[%clk 0:02:15.1]}
14... Nf8 {[%clk 0:02:23.6]} 15. b4 {[%clk 0:02:14]} 15... cxb4 {[%clk
0:02:19.3]} 16. axb4 {[%clk 0:02:13.9]} 16... Bxg4 {[%clk 0:02:19.5]} 17. hxg6
{[%clk 0:02:14.2]} 17... hxg6 {[%clk 0:02:18.8]} 18. c5 {[%clk 0:02:14.7]} 18...
Rc8 {[%clk 0:02:05.9]} 19. Nxe5 {[%clk 0:02:14.5]} 19... dxe5 {[%clk 0:01:39.1]}
20. Bxg4 {[%clk 0:02:10.8]} 20... f5 {[%clk 0:01:39.3]} 21. Bg5 {[%clk
0:01:42.8]} 21... Bf6 {[%clk 0:01:28.6]} 22. Bxf6 {[%clk 0:01:36.9]} 22... Qxf6
{[%clk 0:01:29.5]} 23. Bh3 {[%clk 0:01:30.8]} 23... Rd8 {[%clk 0:01:25.3]} 24.
exf5 {[%clk 0:01:22.1]} 24... gxf5 {[%clk 0:01:20.8]} 25. O-O-O {[%clk
0:01:21.6]} 25... Ng7 {[%clk 0:01:16]} 26. d6 {[%clk 0:01:13.8]} 26... e4 {[%clk
0:01:10.4]} 27. Qd4 {[%clk 0:01:10.1]} 27... Qg5+ {[%clk 0:01:04.8]} 28. Qd2
{[%clk 0:00:56.6]} 28... Qf6 {[%clk 0:01:03]} 29. Rhg1 {[%clk 0:00:52.2]} 29...
Ne6 {[%clk 0:00:53.4]} 30. Kb1 {[%clk 0:00:50.6]} 30... Kf8 {[%clk 0:00:46.8]}
31. Bf1 {[%clk 0:00:46.5]} 31... a5 {[%clk 0:00:33.2]} 32. Nd5 {[%clk
0:00:44.7]} 32... Qe5 {[%clk 0:00:31.5]} 33. Rh1 {[%clk 0:00:30.5]} 33... Ke8
{[%clk 0:00:16.9]} 34. Bb5+ {[%clk 0:00:29.7]} 34... Rdd7 {[%clk 0:00:16]} 35.
Rh8+ {[%clk 0:00:28.3]} 35... Nf8 {[%clk 0:00:15.6]} 36. Bxd7+ {[%clk
0:00:25.1]} 36... Rxd7 {[%clk 0:00:16.5]} 37. Nc7+ {[%clk 0:00:23.4]} 37... Kf7
{[%clk 0:00:15.8]} 38. Qd5+ {[%clk 0:00:23.5]} 38... Qxd5 {[%clk 0:00:15.9]} 39.
Rxd5 {[%clk 0:00:24]} 39... axb4 {[%clk 0:00:16.8]} 40. Kb2 {[%clk 0:00:21.5]}
40... Ng6 {[%clk 0:00:15.2]} 41. Rh7 {[%clk 0:00:20.5]} 41... Kf6 {[%clk
0:00:15.1]} 42. Kb3 {[%clk 0:00:19.6]} 42... Nf4 {[%clk 0:00:14.8]} 43. Rd1
{[%clk 0:00:19.3]} 43... Nd3 {[%clk 0:00:14.6]} 44. Rg1 {[%clk 0:00:19.1]} 44...
Nxc5+ {[%clk 0:00:13.7]} 45. Kxb4 {[%clk 0:00:18.2]} 45... Nd3+ {[%clk
0:00:14.1]} 46. Kc3 {[%clk 0:00:17.6]} 46... Nxf2 {[%clk 0:00:11.2]} 47. Rgxg7
{[%clk 0:00:17.1]} 47... Rxd6 {[%clk 0:00:09.4]} 48. Ne8+ {[%clk 0:00:17.2]}
48... Ke5 {[%clk 0:00:08.7]} 49. Nxd6 {[%clk 0:00:17.4]} 49... Kxd6 {[%clk
0:00:09.6]} 50. Rxb7 {[%clk 0:00:17.8]} 50... Ke5 {[%clk 0:00:09.7]} 51. Rh4
{[%clk 0:00:15.9]} 51... Nd3 {[%clk 0:00:05.9]} 52. Rb5+ {[%clk 0:00:15.9]} 1-0

[Event "*** Titled Tuesday Blitz"]
[Site "Chess.com"]
[Date "2020.05.05"]
[Round "3"]
[White "yamalchess"]
[Black "SlavenPastar"]
[Result "1/2-1/2"]
[WhiteElo "2559"]
[BlackElo "2366"]
[TimeControl "180+1"]
[EndTime "10:30:25 PDT"]
[Termination "Game drawn by repetition"]

1. d4 {[%clk 0:03:00.9]} 1... b6 {[%clk 0:03:00.5]} 2. c4 {[%clk 0:03:00.2]}
2... Bb7 {[%clk 0:03:00.6]} 3. Nc3 {[%clk 0:02:59.7]} 3... e6 {[%clk 0:03:01.2]}
4. a3 {[%clk 0:02:59.9]} 4... f5 {[%clk 0:02:59.1]} 5. Bf4 {[%clk 0:02:50.9]}
5... Nf6 {[%clk 0:02:58.5]} 6. e3 {[%clk 0:02:50.8]} 6... Be7 {[%clk 0:02:58.4]}
7. Nf3 {[%clk 0:02:48.7]} 7... O-O {[%clk 0:02:58.6]} 8. h3 {[%clk 0:02:48.4]}
8... Ne4 {[%clk 0:02:51.1]} 9. Bd3 {[%clk 0:02:45.3]} 9... d6 {[%clk 0:02:35.7]}
10. Qc2 {[%clk 0:02:42]} 10... Nxc3 {[%clk 0:02:30.5]} 11. Qxc3 {[%clk
0:02:41.8]} 11... Nd7 {[%clk 0:02:28.4]} 12. b4 {[%clk 0:02:35.2]} 12... a5
{[%clk 0:02:25.3]} 13. b5 {[%clk 0:02:32.7]} 13... Nf6 {[%clk 0:02:21.7]} 14.
Qc2 {[%clk 0:02:30.7]} 14... Ne4 {[%clk 0:02:13]} 15. O-O {[%clk 0:02:29]} 15...
g5 {[%clk 0:02:05.4]} 16. Bh2 {[%clk 0:02:27.2]} 16... h5 {[%clk 0:01:59.9]} 17.
Nd2 {[%clk 0:02:21.5]} 17... Nxd2 {[%clk 0:01:53.2]} 18. Qxd2 {[%clk 0:02:21]}
18... g4 {[%clk 0:01:48.4]} 19. f3 {[%clk 0:02:05.4]} 19... gxh3 {[%clk
0:01:32.3]} 20. gxh3 {[%clk 0:02:03.9]} 20... Kf7 {[%clk 0:01:30.4]} 21. e4
{[%clk 0:01:59]} 21... Bf6 {[%clk 0:01:22.8]} 22. Bc2 {[%clk 0:01:46.7]} 22...
Rg8+ {[%clk 0:01:18.1]} 23. Kh1 {[%clk 0:01:45.3]} 23... Bg5 {[%clk 0:01:14.4]}
24. Qe2 {[%clk 0:01:33.7]} 24... f4 {[%clk 0:01:13]} 25. e5 {[%clk 0:01:17.2]}
25... dxe5 {[%clk 0:01:05.3]} 26. dxe5 {[%clk 0:01:05.9]} 26... Qe7 {[%clk
0:00:47.9]} 27. Be4 {[%clk 0:01:03]} 27... Bxe4 {[%clk 0:00:43.7]} 28. Qxe4
{[%clk 0:01:02.2]} 28... Rad8 {[%clk 0:00:31.6]} 29. Rad1 {[%clk 0:00:57.7]}
29... Qxa3 {[%clk 0:00:22.3]} 30. Bxf4 {[%clk 0:00:37.4]} 30... Be7 {[%clk
0:00:18.2]} 31. Qh7+ {[%clk 0:00:34.8]} 31... Rg7 {[%clk 0:00:14]} 32. Qxh5+
{[%clk 0:00:32.4]} 32... Kg8 {[%clk 0:00:10.5]} 33. Rxd8+ {[%clk 0:00:31.4]}
33... Bxd8 {[%clk 0:00:11]} 34. Qe8+ {[%clk 0:00:23.6]} 34... Kh7 {[%clk
0:00:05.7]} 35. Qh5+ {[%clk 0:00:20.4]} 35... Kg8 {[%clk 0:00:05.3]} 36. Bh6
{[%clk 0:00:19.8]} 36... Qd3 {[%clk 0:00:04]} 37. Rg1 {[%clk 0:00:09.1]} 37...
Rxg1+ {[%clk 0:00:04.1]} 38. Kxg1 {[%clk 0:00:07.8]} 38... Qd1+ {[%clk
0:00:04.6]} 39. Kg2 {[%clk 0:00:07.8]} 39... Qe2+ {[%clk 0:00:04.2]} 40. Kg1
{[%clk 0:00:07]} 40... Qe1+ {[%clk 0:00:04.4]} 41. Kg2 {[%clk 0:00:07.1]} 41...
Qe2+ {[%clk 0:00:05]} 42. Kg3 {[%clk 0:00:07.4]} 42... Qe1+ {[%clk 0:00:05.5]}
43. Kg2 {[%clk 0:00:07.4]} 43... Qe2+ {[%clk 0:00:05.8]} 1/2-1/2

[Event "*** Titled Tuesday Blitz"]
[Site "Chess.com"]
[Date "2020.05.05"]
[Round "3"]
[White "lucliasco"]
[Black "GOGIEFF"]
[Result "1/2-1/2"]
[WhiteElo "2668"]
[BlackElo "2995"]
[TimeControl "180+1"]
[EndTime "10:30:26 PDT"]
[Termination "Game drawn by repetition"]

1. d4 {[%clk 0:03:00.9]} 1... Nf6 {[%clk 0:02:58.5]} 2. Nf3 {[%clk 0:02:56.2]}
2... e6 {[%clk 0:02:57.9]} 3. Bf4 {[%clk 0:02:55.6]} 3... d5 {[%clk 0:02:53.2]}
4. e3 {[%clk 0:02:44.4]} 4... Bd6 {[%clk 0:02:52.7]} 5. Bg3 {[%clk 0:02:42.4]}
5... O-O {[%clk 0:02:49.1]} 6. Bd3 {[%clk 0:02:41.3]} 6... c5 {[%clk 0:02:48.7]}
7. c3 {[%clk 0:02:41]} 7... Qc7 {[%clk 0:02:48.8]} 8. Nbd2 {[%clk 0:02:36]} 8...
Nbd7 {[%clk 0:02:48.5]} 9. Bxd6 {[%clk 0:02:24.9]} 9... Qxd6 {[%clk 0:02:47.8]}
10. O-O {[%clk 0:02:25.8]} 10... e5 {[%clk 0:02:48.1]} 11. Nxe5 {[%clk
0:02:25.5]} 11... Nxe5 {[%clk 0:02:47.7]} 12. dxe5 {[%clk 0:02:26.4]} 12... Qxe5
{[%clk 0:02:48.6]} 13. Re1 {[%clk 0:02:24.7]} 13... Bg4 {[%clk 0:02:38.5]} 14.
Be2 {[%clk 0:02:18.3]} 14... Be6 {[%clk 0:02:35.4]} 15. Qa4 {[%clk 0:02:14.8]}
15... a6 {[%clk 0:02:28.5]} 16. Qf4 {[%clk 0:02:14.8]} 16... Qxf4 {[%clk
0:02:26.3]} 17. exf4 {[%clk 0:02:15]} 17... Rad8 {[%clk 0:02:19.6]} 18. Nf3
{[%clk 0:02:07.4]} 18... Rfe8 {[%clk 0:02:13.8]} 19. Rad1 {[%clk 0:02:07.6]}
19... h6 {[%clk 0:01:57.5]} 20. Ne5 {[%clk 0:01:55.1]} 20... Kf8 {[%clk
0:01:55.8]} 21. Bf3 {[%clk 0:01:54.1]} 21... b6 {[%clk 0:01:44.3]} 22. a3 {[%clk
0:01:44.5]} 22... Rc8 {[%clk 0:01:29.9]} 23. g3 {[%clk 0:01:21.3]} 23... Red8
{[%clk 0:01:22.8]} 24. Kg2 {[%clk 0:01:20]} 24... a5 {[%clk 0:01:17.9]} 25. Be2
{[%clk 0:01:16.4]} 25... Nd7 {[%clk 0:01:09.8]} 26. Nxd7+ {[%clk 0:01:14.8]}
26... Bxd7 {[%clk 0:01:07]} 27. Bf3 {[%clk 0:01:10]} 27... Bc6 {[%clk
0:01:06.6]} 28. Rd2 {[%clk 0:01:09.1]} 28... Rd6 {[%clk 0:01:07.1]} 29. Red1
{[%clk 0:01:08.8]} 29... Rcd8 {[%clk 0:01:07.7]} 30. b4 {[%clk 0:01:02.7]} 30...
a4 {[%clk 0:01:01.9]} 31. bxc5 {[%clk 0:00:58.1]} 31... bxc5 {[%clk 0:01:02.8]}
32. h4 {[%clk 0:00:56.3]} 32... Ke7 {[%clk 0:00:56]} 33. Re1+ {[%clk 0:00:53.5]}
33... Kd7 {[%clk 0:00:55.9]} 34. Red1 {[%clk 0:00:54.4]} 34... Kc7 {[%clk
0:00:55.8]} 35. Rb2 {[%clk 0:00:49.4]} 35... Rb8 {[%clk 0:00:53.5]} 36. Rxb8
{[%clk 0:00:46.3]} 36... Kxb8 {[%clk 0:00:54.4]} 37. c4 {[%clk 0:00:46.9]} 37...
d4 {[%clk 0:00:53.7]} 38. Bxc6 {[%clk 0:00:45.1]} 38... Rxc6 {[%clk 0:00:54.6]}
39. Rb1+ {[%clk 0:00:44.6]} 39... Kc7 {[%clk 0:00:52.3]} 40. Kf3 {[%clk
0:00:45.5]} 40... Rb6 {[%clk 0:00:51.2]} 41. Rxb6 {[%clk 0:00:42.7]} 41... Kxb6
{[%clk 0:00:51.3]} 42. Ke2 {[%clk 0:00:43.6]} 42... Kc6 {[%clk 0:00:48.9]} 43.
Kd3 {[%clk 0:00:43.6]} 43... Kd7 {[%clk 0:00:48.8]} 44. f5 {[%clk 0:00:42.4]}
44... Kd6 {[%clk 0:00:46.8]} 45. Ke4 {[%clk 0:00:40]} 45... Ke7 {[%clk
0:00:43.6]} 46. g4 {[%clk 0:00:34.5]} 46... Kf6 {[%clk 0:00:38.9]} 47. Kf4
{[%clk 0:00:31.3]} 47... h5 {[%clk 0:00:31.4]} 48. g5+ {[%clk 0:00:26.7]} 48...
Ke7 {[%clk 0:00:31.3]} 49. Ke4 {[%clk 0:00:27.6]} 49... Kd6 {[%clk 0:00:28.8]}
50. Kf4 {[%clk 0:00:27]} 50... g6 {[%clk 0:00:27.1]} 51. fxg6 {[%clk 0:00:20.3]}
51... fxg6 {[%clk 0:00:26.7]} 52. Ke4 {[%clk 0:00:19.3]} 52... Ke7 {[%clk
0:00:26.7]} 53. Kf4 {[%clk 0:00:14]} 53... Ke6 {[%clk 0:00:26.7]} 54. Ke4 {[%clk
0:00:14.6]} 54... Kd6 {[%clk 0:00:22.3]} 55. Kf4 {[%clk 0:00:14.2]} 55... Ke6
{[%clk 0:00:16.2]} 56. Ke4 {[%clk 0:00:14.5]} 56... Kd6 {[%clk 0:00:16.7]} 57.
Kf4 {[%clk 0:00:14.6]} 57... Ke6 {[%clk 0:00:17.2]} 1/2-1/2